bitfinex-derivatives/quotes_SOLF0:USTF0_20241017
["timestamp","ask_amount","ask_price","bid_price","bid_amount"]
[1729165751032,3.3041,151.37,151.33,3.3047]
[1729165751830,3.3041,151.37,151.29,15.87]
[1729165752135,3.3041,151.37,151.34,3.3046]
[1729165752431,3.3041,151.37,151.29,15.87]
[1729165752730,3.3042,151.36,151.33,3.3047]
[1729165753932,3.3042,151.36,151.34,3.3045]
[1729165754132,3.3042,151.36,151.29,15.87]
[1729165754329,3.3045,151.35,151.29,15.87]
[1729165754539,15.87,151.34,151.28,7.6708]
[1729165754940,3.3049,151.33,151.3,3.3053]
[1729165755129,15.87,151.32,151.27,3.29531713]
[1729165755336,15.87,151.3,151.26,1.4469]
[1729165755534,15.87,151.3,151.28,3.3059]
[1729165755841,15.87,151.3,151.28,3.38072492]
[1729165756042,19.1755,151.3,151.27,3.306]
[1729165756340,15.87,151.3,151.22,4.94]
[1729165756729,3.3058,151.29,151.25,3.3065]
[1729165757239,15.87,151.3,151.21,4.1879]
[1729165757541,15.87,151.28,151.21,4.1879]
[1729165757738,15.87,151.26,151.21,4.1879]
[1729165758043,15.87,151.28,151.21,4.1879]
[1729165758552,15.87,151.28,151.23,3.307]
[1729165758735,15.87,151.28,151.21,4.1879]
[1729165758936,3.3055,151.3,151.25,3.3064]
[1729165759241,20.81,151.31,151.22,4.94]
[1729165759540,24.1153,151.31,151.26,3.3062]
[1729165759744,24.1153,151.31,151.27,3.37932037]
[1729165760144,24.1153,151.31,151.27,3.306]
[1729165760338,8.2453,151.31,151.28,3.2867]
[1729165760641,4.94,151.31,151.27,3.2456824]
[1729165760833,4.94,151.31,151.22,20.81]
[1729165761346,8.2453,151.31,151.24,3.3066]
[1729165761642,8.2453,151.31,151.22,20.81]
[1729165761842,8.2453,151.31,151.26,3.3061]
[1729165762044,8.2453,151.31,151.22,20.81]
[1729165762239,8.2453,151.31,151.22,4.94]
[1729165762434,8.2453,151.31,151.26,3.3062]
[1729165763544,3.3051,151.32,151.24,15.87]
[1729165763944,3.3056,151.3,151.26,3.3063]
[1729165764139,15.87,151.31,151.27,3.38261118]
[1729165764441,15.87,151.31,151.22,4.94]
[1729165764646,4.94,151.33,151.22,4.94]
[1729165764647,15.87,151.29,151.22,4.94]
[1729165764944,15.87,151.27,151.21,2.8198]
[1729165766050,3.3067,151.25,151.21,6.1271]
[1729165766348,15.87,151.27,151.21,2.8198]
[1729165766546,15.87,151.27,151.21,1.3659]
[1729165766848,15.87,151.27,151.2,3.3075]
[1729165767149,15.87,151.27,151.19,8.17871415]
[1729165767545,3.3067,151.25,151.19,8.17871415]
[1729165767740,3.3067,151.25,151.21,3.3073]
[1729165767936,15.87,151.22,151.1,6.6194]
[1729165768145,15.87,151.22,151.1,3.34502659]
[1729165768346,15.87,151.22,151.11,20.1612]
[1729165768643,4.94,151.24,151.11,20.1612]
[1729165768644,15.87,151.21,151.11,20.1612]
[1729165768856,4.94,151.2,151.11,20.1612]
[1729165769349,4.94,151.19,151.11,20.1612]
[1729165769847,4.94,151.19,151.14,3.3088]
[1729165770150,4.94,151.19,151.11,20.1612]
[1729165770743,4.94,151.21,151.13,15.87]
[1729165770943,4.94,151.21,151.13,19.20322788]
[1729165771150,4.94,151.21,151.17,3.3082]
[1729165771546,4.94,151.21,151.14,4.94]
[1729165771746,8.2476,151.21,151.16,3.3084]
[1729165772550,8.2476,151.21,151.16,3.3085]
[1729165772851,8.2476,151.21,151.17,3.3083]
[1729165773039,4.94,151.21,151.14,4.94]
[1729165773450,4.94,151.21,151.18,3.3079]
[1729165774652,3.3073,151.22,151.18,3.3079]
[1729165775151,20.81,151.23,151.2,3.3076]
[1729165775152,24.1171,151.23,151.2,3.3076]
[1729165775348,15.87,151.23,151.2,3.3076]
[1729165775552,1.4197,151.31,151.14,4.94]
[1729165775553,20.81,151.25,151.14,4.94]
[1729165775752,15.87,151.25,151.15,15.87]
[1729165776145,3.3072,151.23,151.19,3.3077]
[1729165776450,15.87,151.23,151.15,15.87]
[1729165776654,3.3074,151.22,151.18,3.3079]
[1729165777248,15.87,151.21,151.14,4.94]
[1729165777850,15.87,151.21,151.19,3.3077]
[1729165779442,15.87,151.21,151.2,3.3077]
[1729165779647,15.87,151.21,151.14,4.94]
[1729165780149,15.87,151.21,151.18,3.308]
[1729165780454,19.1776,151.21,151.14,4.94]
[1729165780650,15.87,151.21,151.17,3.3083]
[1729165781752,19.1775,151.21,151.18,3.3081]
[1729165782460,19.1775,151.21,151.17,3.3082]
[1729165782852,24.2775,151.21,151.17,3.3082]
[1729165783053,20.97,151.21,151.14,4.94]
[1729165783654,19.1775,151.21,151.17,3.3082]
[1729165783855,24.2775,151.21,151.17,3.3082]
[1729165784554,24.2775,151.21,151.14,4.94]
[1729165784756,24.2775,151.21,151.18,3.3081]
[1729165787760,10.17,151.19,151.18,3.3081]
[1729165792858,5.12,151.23,151.2,3.3075]
[1729165793063,10.17,151.21,151.2,3.3075]
[1729165793262,5.12,151.25,151.15,10.17]
[1729165793462,5.12,151.25,151.21,3.3072]
[1729165793664,3.3068,151.24,151.21,6.65123962]
[1729165794160,3.3068,151.24,151.15,10.17]
[1729165794161,5.12,151.25,151.14,16.7877]
[1729165794365,5.12,151.25,151.14,6.6177]
[1729165794366,10.17,151.17,151.14,6.6177]
[1729165794661,10.17,151.17,151.14,9.84460228]
[1729165795462,10.17,151.17,151.16,3.3085]
[1729165796274,3.307,151.23,151.2,3.3076]
[1729165796471,10.17,151.21,151.14,9.94729079]
[1729165796669,10.17,151.17,151.14,9.94729079]
[1729165798371,10.17,151.17,151.16,3.3085]
[1729165799868,10.17,151.19,151.14,20.11729079]
[1729165800471,5.12,151.25,151.18,3.3081]
[1729165800668,10.17,151.19,151.14,3.32959079]
[1729165800869,10.17,151.16,151.13,5.1]
[1729165801061,10.17,151.16,151.15,3.3087]
[1729165801265,10.17,151.16,151.15,6.68328322]
[1729165803473,7.17,151.16,151.15,3.3087]
[1729165803775,7.17,151.16,151.15,6.64369517]
[1729165804070,7.17,151.16,151.15,3.3087]
[1729165804271,7.17,151.16,151.15,6.55864915]
[1729165806272,5.12,151.21,151.15,3.24994915]
[1729165806474,3.3077,151.2,151.11,19.5812]
[1729165806667,10.17,151.16,151.11,19.5812]
[1729165806872,8.4277,151.2,151.16,3.3083]
[1729165807073,10.17,151.17,151.12,10.17]
[1729165807582,3.3612,151.24,151.14,10.17]
[1729165807876,10.17,151.2,151.14,10.17]
[1729165808069,10.17,151.2,151.19,3.3079]
[1729165808269,10.17,151.2,151.19,6.54020119]
[1729165809372,10.17,151.2,151.19,3.23230119]
[1729165815082,10.17,151.2,151.15,5.12]
[1729165815282,10.17,151.16,151.11,9.2712]
[1729165815480,10.17,151.13,151.11,12.63442626]
[1729165815686,10.17,151.14,151.11,12.63442626]
[1729165816370,10.17,151.14,151.13,3.3092]
[1729165817483,8.2879,151.19,151.16,3.3084]
[1729165817674,10.17,151.17,151.16,3.3084]
[1729165817873,10.17,151.17,151.16,6.59618024]
[1729165818284,10.17,151.17,151.16,3.28778024]
[1729165818486,10.17,151.17,151.15,3.3087]
[1729165818875,10.17,151.17,151.12,10.17]
[1729165819081,10.17,151.17,151.16,3.3085]
[1729165820178,10.17,151.17,151.12,13.43924821]
[1729165820179,10.17,151.18,151.13,10.17]
[1729165820374,10.17,151.18,151.12,3.26924821]
[1729165820375,10.17,151.17,151.12,3.26924821]
[1729165820578,4.98,151.2,151.11,11.5524]
[1729165820779,10.17,151.17,151.15,3.3086]
[1729165820972,4.98,151.2,151.13,10.17]
[1729165821180,10.17,151.19,151.13,10.17]
[1729165821380,10.17,151.19,151.16,3.3084]
[1729165822188,13.4779,151.19,151.16,3.3084]
[1729165822588,10.17,151.17,151.14,3.3088]
[1729165822785,4.98,151.2,151.12,10.17]
[1729165822985,10.17,151.19,151.14,10.17]
[1729165823190,10.17,151.19,151.16,3.3084]
[1729165824590,10.17,151.18,151.15,3.3087]
[1729165824791,10.17,151.18,151.12,10.17]
[1729165824985,4.98,151.21,151.12,10.17]
[1729165825182,10.17,151.18,151.16,3.3084]
[1729165825985,4.98,151.22,151.16,10.17]
[1729165826190,10.17,151.23,151.17,10.17]
[1729165826591,10.17,151.23,151.2,3.3075]
[1729165826891,10.17,151.24,151.2,13.52539866]
[1729165827088,10.17,151.24,151.2,10.17]
[1729165827288,10.17,151.24,151.2,13.45656997]
[1729165827492,10.17,151.24,151.2,3.28656997]
[1729165827783,10.17,151.24,151.19,10.17]
[1729165828190,10.17,151.24,151.21,3.3073]
[1729165831691,10.17,151.24,151.22,3.3071]
[1729165832891,4.98,151.26,151.22,3.3071]
[1729165833096,10.17,151.25,151.22,3.3071]
[1729165833604,13.4766,151.25,151.22,3.3071]
[1729165835290,10.17,151.23,151.19,3.32793336]
[1729165835492,10.17,151.21,151.19,3.3078]
[1729165835692,10.17,151.21,151.19,6.6690409]
[1729165835997,10.17,151.21,151.19,3.3079]
[1729165836402,3.3069,151.24,151.19,3.23817184]
[1729165836691,10.17,151.23,151.2,3.3075]
[1729165837094,10.17,151.23,151.19,3.34139105]
[1729165837095,10.17,151.24,151.22,3.3072]
[1729165837295,10.17,151.24,151.2,10.17]
[1729165837492,10.17,151.24,151.2,13.53785752]
[1729165837691,10.17,151.24,151.2,3.36785752]
[1729165837890,10.17,151.23,151.18,10.17]
[1729165838402,4.98,151.25,151.19,3.3078]
[1729165838403,13.4773,151.22,151.19,3.3078]
[1729165838698,13.4773,151.22,151.19,6.56261314]
[1729165839299,10.17,151.22,151.19,6.56261314]
[1729165840201,13.4772,151.22,151.19,6.56261314]
[1729165840500,10.17,151.22,151.19,3.25481314]
[1729165840803,10.17,151.23,151.19,10.17]
[1729165841106,10.17,151.23,151.21,3.3073]
[1729165841296,10.17,151.23,151.19,13.48437056]
[1729165841604,15.15,151.25,151.22,3.3072]
[1729165841996,4.98,151.25,151.22,3.3072]
[1729165842193,10.17,151.24,151.2,8.477]
[1729165842501,4.98,151.25,151.19,3.31437056]
[1729165842697,15.55906817,151.33,151.21,10.17]
[1729165842897,13.4758,151.29,151.23,10.17]
[1729165843202,10.17,151.29,151.23,10.17]
[1729165843504,1.4711,151.32,151.24,10.17]
[1729165843696,10.17,151.29,151.24,10.17]
[1729165844097,10.17,151.29,151.26,3.3062]
[1729165844701,10.17,151.28,151.25,3.3065]
[1729165845409,13.476,151.28,151.23,10.17]
[1729165845607,13.476,151.28,151.24,3.3067]
[1729165846807,13.476,151.28,151.23,10.17]
[1729165847008,13.476,151.28,151.25,3.3065]
[1729165848007,10.17,151.29,151.26,3.3062]
[1729165848708,10.17,151.28,151.24,3.3068]
[1729165848908,10.17,151.25,151.2,9.1702]
[1729165849110,10.17,151.22,151.19,3.27588986]
[1729165849312,10.17,151.22,151.21,3.3074]
[1729165849614,10.17,151.22,151.21,6.55816575]
[1729165850304,3.3068,151.25,151.21,6.55816575]
[1729165850305,10.17,151.23,151.21,3.25076575]
[1729165850504,10.17,151.23,151.22,3.3072]
[1729165850710,3.3068,151.25,151.22,3.24845063]
[1729165850711,10.17,151.25,151.22,3.24845063]
[1729165850909,10.17,151.25,151.24,3.3068]
[1729165851205,5.0,151.26,151.24,3.26928675]
[1729165851406,10.17,151.27,151.21,10.17]
[1729165851807,3.3058,151.29,151.23,10.17]
[1729165852112,10.17,151.28,151.23,10.17]
[1729165852513,10.17,151.28,151.23,13.442149]
[1729165853208,10.17,151.28,151.25,3.3064]
[1729165855412,13.476,151.28,151.25,3.3065]
[1729165855808,10.17,151.28,151.25,3.3065]
[1729165857716,13.4755,151.3,151.27,3.3061]
[1729165858019,13.4755,151.3,151.23,3.272149]
[1729165858020,13.4755,151.3,151.24,10.17]
[1729165858218,13.4755,151.3,151.27,3.3061]
[1729165858616,3.3058,151.29,151.24,10.17]
[1729165859121,10.17,151.3,151.27,3.3061]
[1729165859322,13.4755,151.3,151.27,3.3061]
[1729165859918,10.17,151.3,151.24,10.17]
[1729165860118,13.4755,151.3,151.28,3.3059]
[1729165860418,13.4755,151.3,151.24,10.17]
[1729165860419,10.17,151.31,151.25,10.17]
[1729165860623,10.17,151.31,151.29,3.3056]
[1729165860935,8.3052,151.32,151.29,3.3056]
[1729165860936,13.4752,151.32,151.29,3.3056]
[1729165861518,10.17,151.32,151.27,10.17]
[1729165861826,15.17,151.36,151.3,10.17]
[1729165862021,11.97,151.36,151.3,13.54489646]
[1729165862222,15.2744,151.36,151.31,3.3051]
[1729165862428,11.97,151.36,151.3,13.54489646]
[1729165862829,13.4744,151.35,151.32,3.3049]
[1729165864227,10.17,151.35,151.3,13.54489646]
[1729165864527,71.42,151.42,151.34,10.17]
[1729165864528,15.17,151.39,151.34,10.17]
[1729165865323,13.4733,151.4,151.37,3.3039]
[1729165865642,5.0,151.42,151.35,10.17]
[1729165865928,10.17,151.4,151.38,3.3036]
[1729165866128,10.17,151.4,151.39,3.27780239]
[1729165866430,10.17,151.42,151.39,3.3035]
[1729165866631,5.0,151.43,151.34,5.0]
[1729165866632,10.17,151.43,151.38,13.43854587]
[1729165867243,13.0745,151.46,151.41,10.17]
[1729165867527,10.17,151.43,151.38,18.43854587]
[1729165867930,15.86,151.45,151.38,8.26854587]
[1729165868132,3.3027,151.43,151.4,3.3032]
[1729165868925,6.5992,151.57,151.42,15.86]
[1729165869128,15.86,151.52,151.43,4.98]
[1729165869320,3.3019,151.47,151.41,90.36161964]
[1729165869520,15.86,151.46,151.42,4.98]
[1729165869929,3.3022,151.45,151.42,8.2828]
[1729165870235,15.86,151.46,151.42,4.98]
[1729165870421,3.3022,151.45,151.42,4.98]
[1729165871429,3.3022,151.45,151.42,8.2828]
[1729165873931,3.3024,151.44,151.42,4.98]
[1729165874223,15.86,151.46,151.42,4.98]
[1729165874828,3.3022,151.45,151.42,4.98]
[1729165875734,19.1621,151.46,151.42,8.2827]
[1729165876130,3.3021,151.46,151.42,8.2827]
[1729165876329,3.3021,151.46,151.42,4.98]
[1729165876532,3.3021,151.46,151.38,19.12854587]
[1729165876533,15.86,151.46,151.38,3.26854587]
[1729165876730,20.84,151.48,151.36,4.98]
[1729165876731,15.86,151.44,151.36,4.98]
[1729165876936,15.86,151.42,151.37,4.98]
[1729165877139,3.303,151.42,151.37,4.98]
[1729165877330,15.86,151.44,151.37,4.98]
[1729165877532,15.86,151.44,151.4,3.3032]
[1729165877734,3.3028,151.43,151.37,4.98]
[1729165878233,15.86,151.44,151.37,4.98]
[1729165878234,3.3026,151.44,151.37,20.84]
[1729165878435,15.86,151.46,151.37,22.2439]
[1729165878638,3.3022,151.45,151.37,22.2439]
[1729165878941,1.3524,151.47,151.37,22.2439]
[1729165879645,15.86,151.5,151.39,15.86]
[1729165879833,3.3019,151.47,151.43,3.3025]
[1729165880141,3.3019,151.47,151.43,4.98]
[1729165880343,3.3014,151.49,151.46,3.3018]
[1729165880638,22.196,151.58,151.47,20.84]
[1729165880843,22.196,151.58,151.49,15.86]
[1729165881033,17.216,151.58,151.5,4.98]
[1729165881237,1.356,151.58,151.5,4.98]
[1729165881446,3.2999,151.56,151.51,8.2807]
[1729165881647,15.86,151.6,151.51,4.98]
[1729165882140,3.2999,151.56,151.52,3.3006]
[1729165882338,15.86,151.58,151.52,4.98]
[1729165882734,3.3001,151.55,151.52,4.98]
[1729165883035,15.86,151.58,151.52,4.98]
[1729165884945,3.3004,151.54,151.52,4.98]
[1729165885938,3.3004,151.54,151.51,4.98]
[1729165886449,3.3004,151.54,151.5,3.301]
[1729165886641,3.3004,151.54,151.5,8.281]
[1729165886951,3.3002,151.55,151.51,3.3008]
[1729165889040,3.2999,151.56,151.52,3.3005]
[1729165889250,3.2999,151.56,151.5,4.98]
[1729165889939,15.86,151.58,151.5,4.98]
[1729165890141,3.3,151.55,151.5,4.98]
[1729165890845,15.86,151.58,151.49,19.2175595]
[1729165891042,4.2221,151.62,151.49,3.3575595]
[1729165891043,15.86,151.56,151.49,3.3575595]
[1729165891238,15.86,151.56,151.47,4.1932]
[1729165891440,15.86,151.52,151.43,15.86]
[1729165891646,15.86,151.5,151.44,4.98]
[1729165891848,15.86,151.5,151.44,3.34765041]
[1729165892050,15.86,151.5,151.44,3.3022]
[1729165892245,15.86,151.5,151.44,6.65051076]
[1729165892440,3.3017,151.48,151.45,3.3021]
[1729165892645,15.86,151.5,151.46,3.30736899]
[1729165892949,15.86,151.52,151.43,20.84]
[1729165893255,3.3011,151.5,151.46,3.3018]
[1729165893456,3.3011,151.5,151.46,6.57525387]
[1729165894149,3.3014,151.49,151.46,3.27345387]
[1729165894352,15.86,151.52,151.43,20.84]
[1729165894652,15.86,151.52,151.45,3.302]
[1729165894850,3.3014,151.49,151.45,6.67518985]
[1729165895154,3.3014,151.49,151.45,3.302]
[1729165895650,3.3014,151.49,151.45,6.603195]
[1729165895851,3.3018,151.47,151.45,3.301195]
[1729165896053,15.86,151.5,151.44,3.3023]
[1729165896653,3.3017,151.48,151.44,6.67945287]
[1729165897157,3.3017,151.48,151.45,3.3022]
[1729165899350,15.86,151.5,151.44,11.75945287]
[1729165900349,3.3018,151.47,151.44,11.75945287]
[1729165901260,3.3018,151.47,151.44,6.67945287]
[1729165903265,3.3022,151.45,151.44,3.37715287]
[1729165903466,3.3022,151.45,151.4,5.08]
[1729165903653,3.3025,151.44,151.4,8.3831]
[1729165904058,3.3025,151.44,151.4,5.08]
[1729165904362,3.3025,151.44,151.39,5.08]
[1729165905560,3.302,151.46,151.4,15.86]
[1729165905861,5.08,151.49,151.42,15.86]
[1729165907552,3.3018,151.47,151.44,3.3022]
[1729165907768,3.3018,151.47,151.44,6.62221657]
[1729165912466,3.3017,151.48,151.45,3.3021]
[1729165913760,3.3017,151.48,151.44,13.46001657]
[1729165913965,3.3017,151.48,151.46,3.302]
[1729165915565,3.3017,151.48,151.46,13.442]
[1729165916762,3.3015,151.49,151.47,3.3018]
[1729165917367,6.5994,151.57,151.48,10.14]
[1729165917678,10.14,151.55,151.5,10.14]
[1729165917861,10.14,151.55,151.5,13.51694567]
[1729165918265,3.3006,151.53,151.5,16.81794567]
[1729165918869,3.3006,151.53,151.51,3.3009]
[1729165920265,3.3006,151.53,151.5,6.67794567]
[1729165920466,3.3007,151.52,151.5,3.301]
[1729165921067,3.3007,151.52,151.5,6.56389591]
[1729165921967,3.3007,151.52,151.5,3.26289591]
[1729165922171,3.3007,151.52,151.49,3.3013]
[1729165922471,5.08,151.57,151.49,3.350404]
[1729165922472,3.3011,151.5,151.49,3.350404]
[1729165922666,3.3011,151.5,151.47,3.3016]
[1729165922868,15.86,151.51,151.47,3.25695655]
[1729165923177,3.302,151.46,151.43,8.3825]
[1729165923674,3.302,151.46,151.43,3.3025]
[1729165923969,15.86,151.49,151.43,3.3025]
[1729165924185,15.86,151.47,151.41,3.303]
[1729165924382,15.86,151.45,151.4,4.191]
[1729165924680,15.86,151.45,151.4,1.4268]
[1729165925175,3.3031,151.41,151.39,5.08]
[1729165925371,3.3031,151.41,151.37,93.69334675]
[1729165925571,3.3031,151.41,151.37,98.77334675]
[1729165925969,3.303,151.42,151.37,95.46954675]
[1729165926168,15.86,151.43,151.37,95.46954675]
[1729165926373,15.86,151.43,151.37,90.38954675]
[1729165926573,3.3032,151.41,151.37,93.69324675]
[1729165926780,15.86,151.43,151.37,90.38954675]
[1729165927479,3.303,151.42,151.38,3.3037]
[1729165930283,3.3032,151.41,151.38,3.3037]
[1729165930887,3.3034,151.4,151.37,93.69334675]
[1729165931382,15.86,151.42,151.37,90.38954675]
[1729165931985,15.86,151.43,151.37,90.38954675]
[1729165932786,3.3032,151.41,151.38,3.3037]
[1729165934989,15.86,151.43,151.38,3.3037]
[1729165935299,3.3034,151.4,151.38,3.3037]
[1729165935597,3.3034,151.4,151.37,93.69344675]
[1729165936190,15.86,151.43,151.37,90.38954675]
[1729165936384,3.3033,151.4,151.38,3.3036]
[1729165937696,3.3031,151.41,151.39,3.3035]
[1729165937891,3.3031,151.41,151.37,90.38954675]
[1729165938093,3.3031,151.41,151.38,3.3036]
[1729165941100,3.3031,151.41,151.37,90.38954675]
[1729165941307,3.303,151.42,151.39,3.3035]
[1729165941708,15.86,151.43,151.39,3.3035]
[1729165942504,3.3032,151.41,151.39,3.3035]
[1729165942907,3.3032,151.41,151.38,3.3036]
[1729165943698,3.3032,151.41,151.38,6.62427193]
[1729165944103,15.86,151.43,151.38,6.62427193]
[1729165944805,3.3032,151.41,151.38,6.62427193]
[1729165945802,3.3032,151.41,151.39,3.3035]
[1729165947012,3.3032,151.41,151.4,3.33950746]
[1729165947214,3.3032,151.41,151.39,3.3035]
[1729165947615,19.1628,151.43,151.4,3.3032]
[1729165947919,10.15,151.42,151.4,3.3032]
[1729165948617,10.15,151.41,151.4,3.3032]
[1729165948819,10.15,151.41,151.4,6.66981031]
[1729165949018,10.15,151.41,151.4,3.3032]
[1729165949510,10.15,151.41,151.4,6.6420499]
[1729165952721,10.15,151.42,151.41,3.303]
[1729165953422,10.15,151.42,151.41,6.56562368]
[1729165954120,13.4528,151.42,151.41,3.26262368]
[1729165954326,10.15,151.42,151.34,5.0]
[1729165954532,10.15,151.38,151.34,8.3872068]
[1729165954728,10.15,151.38,151.36,3.304]
[1729165955624,10.15,151.37,151.34,6.6917068]
[1729165955929,10.15,151.35,151.34,3.3872068]
[1729165956113,10.15,151.35,151.17,226.0]
[1729165956427,10.15,151.31,151.26,9.1715]
[1729165956821,13.4553,151.31,151.26,4.1715]
[1729165957020,10.15,151.31,151.26,9.0915]
[1729165957223,10.15,151.31,151.28,3.3059]
[1729165957723,5.0,151.35,151.28,10.15]
[1729165957925,5.0,151.35,151.27,15.88]
[1729165958515,5.0,151.35,151.32,3.3049]
[1729165958828,5.0,151.35,151.32,6.54457477]
[1729165960232,3.3043,151.36,151.32,6.54457477]
[1729165960629,3.3044,151.35,151.32,6.54457477]
[1729165960917,15.88,151.34,151.32,3.23967477]
[1729165961123,15.88,151.34,151.26,9.0915]
[1729165961327,19.1847,151.34,151.31,3.3051]
[1729165961523,19.1847,151.34,151.32,3.22412929]
[1729165961923,15.88,151.34,151.26,24.9715]
[1729165962229,15.88,151.36,151.28,15.88]
[1729165962521,3.3044,151.35,151.32,3.3048]
[1729165962723,15.88,151.36,151.32,3.36563127]
[1729165962930,15.88,151.36,151.27,15.88]
[1729165963126,3.3044,151.35,151.32,3.3049]
[1729165963326,3.3044,151.35,151.33,3.34480271]
[1729165964124,15.88,151.36,151.27,15.88]
[1729165964430,3.3048,151.33,151.27,15.88]
[1729165965021,3.3051,151.32,151.26,9.0915]
[1729165965324,15.88,151.34,151.26,9.0915]
[1729165965529,15.88,151.34,151.27,4.92]
[1729165966328,3.3051,151.32,151.29,3.3056]
[1729165966534,15.88,151.34,151.29,3.3056]
[1729165966740,15.88,151.34,151.27,4.92]
[1729165967618,3.3049,151.33,151.3,3.3053]
[1729165969631,15.88,151.34,151.27,4.92]
[1729165969930,19.1847,151.34,151.31,3.3051]
[1729165970525,4.92,151.38,151.27,4.92]
[1729165970526,20.8,151.38,151.28,15.88]
[1729165970927,3.3041,151.37,151.31,3.3053]
[1729165971123,4.92,151.39,151.31,4.92]
[1729165971324,4.92,151.39,151.32,4.2316]
[1729165971626,4.92,151.39,151.36,3.304]
[1729165971828,15.88,151.4,151.36,3.304]
[1729165972327,3.3035,151.39,151.36,3.304]
[1729165973532,20.8,151.42,151.32,23.46378064]
[1729165973833,3.3034,151.4,151.37,3.3038]
[1729165975135,20.8,151.42,151.37,3.3038]
[1729165975329,3.3035,151.39,151.37,3.3038]
[1729165977932,10.16,151.39,151.37,3.3038]
[1729165979537,13.4635,151.39,151.37,3.3038]
[1729165983847,2.7186,151.47,151.41,3.303]
[1729165983848,4.92,151.46,151.41,3.303]
[1729165984047,4.92,151.46,151.41,3.29819357]
[1729165984048,10.16,151.44,151.41,3.29819357]
[1729165984337,10.16,151.44,151.39,10.16]
[1729165984338,10.16,151.42,151.39,3.3034]
[1729165984846,13.4626,151.44,151.41,3.3029]
[1729165985143,10.16,151.42,151.38,10.16]
[1729165985343,10.16,151.42,151.37,10.16]
[1729165985647,10.16,151.41,151.39,3.3034]
[1729165985832,10.16,151.4,151.35,15.08]
[1729165986034,10.16,151.38,151.35,4.92]
[1729165986242,10.16,151.37,151.35,4.92]
[1729165986748,10.16,151.38,151.35,4.92]
[1729165987240,15.08,151.41,151.37,10.16]
[1729165987446,4.92,151.41,151.37,10.16]
[1729165987647,10.16,151.43,151.37,10.16]
[1729165988151,3.303,151.42,151.39,3.3034]
[1729165988355,10.16,151.4,151.36,10.16]
[1729165988755,10.16,151.39,151.35,4.92]
[1729165989454,10.16,151.4,151.35,15.08]
[1729165989756,10.16,151.41,151.36,10.16]
[1729165989949,13.4631,151.41,151.38,3.3036]
[1729165990145,10.16,151.41,151.36,10.16]
[1729165990346,10.16,151.4,151.35,4.92]
[1729165990655,13.4636,151.39,151.36,3.304]
[1729165990954,10.16,151.39,151.35,4.92]
[1729165991551,13.4634,151.4,151.37,3.3038]
[1729165991751,1.3251,151.47,151.38,10.16]
[1729165992062,10.16,151.44,151.38,10.16]
[1729165992354,13.4627,151.43,151.39,3.3034]